fUSD/lending_fUSD_20241107
["ID","MTS","AMOUNT","RATE_DAILY","PERIOD"]
[341545931,1730972385604,-323.49,0.000392,31]
[341545932,1730972385644,-323.49,0.000392,31]
[341545933,1730972385682,-151.0,0.00039205,120]
[341545934,1730972385719,-208.0,0.0003924,30]
[341545935,1730972385755,-1003.3,0.0003925,35]
[341545936,1730972385792,-150.0,0.00039314,30]
[341545937,1730972385828,-518039.39589713,0.000394,120]
[341545938,1730972385865,-456.65,0.00039409,120]
[341545939,1730972385900,-150.0,0.00039451,30]
[341545940,1730972385935,-2000.0,0.00039452,30]
[341545941,1730972385971,-500.0,0.00039571,60]
[341545942,1730972386006,-700.0,0.00039571,60]
[341545943,1730972386041,-500.0,0.00039571,60]
[341545944,1730972386076,-150.0,0.00039588,30]
[341545945,1730972386114,-204.22353207,0.00039725,30]
[341545946,1730972386149,-2000.0,0.00039726,30]
[341545947,1730972386186,-4526.45,0.00039726,120]
[341545948,1730972386221,-324.92590703,0.00039726,30]
[341545949,1730972386257,-300.0,0.000398,120]
[341545950,1730972386290,-13400.0,0.0003988,120]
[341545951,1730972386323,-5001.60108,0.0003989,30]
[341545952,1730972386357,-324.92590703,0.00039918,30]
[341545953,1730972386390,-150.5,0.0003997,120]
[341545954,1730972386423,-150.5,0.0003998,120]
[341545955,1730972386465,-247.53748609,0.0003999,120]
[341545956,1730972386501,-150.5,0.0003999,120]
[341545957,1730972386536,-157.23,0.0003999,120]
[341545958,1730972386574,-157.5,0.0003999,120]
[341545959,1730972386802,-199.22,0.0003999,120]
[341545960,1730972386838,-348.20098128,0.00039999,31]
[341545961,1730972386873,-312.9145001,0.00039999,31]
[341545962,1730972386908,-446.89685123,0.00039999,31]
[341545963,1730972386946,-500.0,0.00039999,31]
[341545964,1730972386983,-500.0,0.00039999,31]
[341545965,1730972387017,-500.0,0.00039999,31]
[341545966,1730972387051,-500.0,0.00039999,31]
[341545967,1730972387085,-500.0,0.00039999,31]
[341545968,1730972387122,-500.0,0.00039999,31]
[341545969,1730972387158,-500.0,0.00039999,31]
[341545970,1730972387195,-500.0,0.00039999,31]
[341545971,1730972387236,-500.0,0.00039999,31]
[341545972,1730972387275,-500.0,0.00039999,31]
[341545973,1730972387312,-500.0,0.00039999,31]
[341545974,1730972387348,-500.0,0.00039999,31]
[341545975,1730972387385,-500.0,0.00039999,31]
[341545976,1730972387420,-500.0,0.00039999,31]
[341545977,1730972387458,-500.0,0.00039999,31]
[341545978,1730972387494,-500.0,0.00039999,31]
[341545979,1730972387530,-500.0,0.00039999,31]
[341545980,1730972387568,-500.0,0.00039999,31]
[341545981,1730972387604,-500.0,0.00039999,31]
[341545982,1730972387642,-500.0,0.00039999,31]
[341545983,1730972387679,-500.0,0.00039999,31]
[341545984,1730972387715,-500.0,0.00039999,31]
[341545985,1730972387752,-500.0,0.00039999,31]
[341545986,1730972387790,-500.0,0.00039999,31]
[341545987,1730972387829,-500.0,0.00039999,31]
[341545988,1730972387864,-500.0,0.00039999,31]
[341545989,1730972387898,-500.0,0.00039999,31]
[341545990,1730972387933,-500.0,0.00039999,31]
[341545991,1730972387967,-500.0,0.00039999,31]
[341545992,1730972388000,-500.0,0.00039999,31]
[341545993,1730972388036,-500.0,0.00039999,31]
[341545994,1730972388071,-500.0,0.00039999,31]
[341545995,1730972388107,-331.35624407,0.00039999,31]
[341545996,1730972388145,-500.0,0.00039999,31]
[341545997,1730972388186,-500.0,0.00039999,31]
[341545998,1730972388224,-500.0,0.00039999,31]
[341545999,1730972388262,-500.0,0.00039999,31]
[341546000,1730972388301,-500.0,0.00039999,31]
[341546001,1730972388339,-500.0,0.00039999,31]
[341546002,1730972388377,-500.0,0.00039999,31]
[341546003,1730972388413,-500.0,0.00039999,31]
[341546004,1730972388451,-500.0,0.00039999,31]
[341546005,1730972388491,-500.0,0.00039999,31]
[341546006,1730972388530,-500.0,0.00039999,31]
[341546007,1730972388570,-500.0,0.00039999,31]
[341546008,1730972388608,-500.0,0.00039999,31]
[341546009,1730972388645,-500.0,0.00039999,31]
[341546010,1730972388684,-500.0,0.00039999,31]
[341546011,1730972388723,-500.0,0.00039999,31]
[341546012,1730972388764,-500.0,0.00039999,31]
[341546013,1730972388804,-500.0,0.00039999,31]
[341546014,1730972388842,-500.0,0.00039999,31]
[341546015,1730972388878,-500.0,0.00039999,31]
[341546016,1730972388915,-500.0,0.00039999,31]
[341546017,1730972388955,-160.9066343,0.00039999,31]
[341546018,1730972388994,-500.0,0.00039999,31]
[341546019,1730972389031,-500.0,0.00039999,31]
[341546020,1730972389068,-500.0,0.00039999,31]
[341546021,1730972389104,-500.0,0.00039999,31]
[341546022,1730972389142,-500.0,0.00039999,31]
[341546023,1730972389181,-350.0,0.00039999,31]
[341546024,1730972389218,-50000.0,0.0004,30]
[341546025,1730972389259,-25000.0,0.0004,120]
[341546026,1730972389295,-500.0,0.0004,120]
[341546027,1730972389332,-591.80747204,0.0004,120]
[341546028,1730972389366,-375.11247068,0.0004,30]
[341546029,1730972389402,-24666.77102198,0.0004,120]
[341546030,1730972389437,-29788.60269969,0.0004,30]
[341546031,1730972389476,-191.50060328,0.0004,30]
[341546032,1730972389512,-792.33406218,0.0004,30]
[341546033,1730972389549,-34235.53470876,0.0004,30]
[341546034,1730972389587,-14634.46464676,0.0004,30]
[341546035,1730972389624,-900.0,0.0004,41]
[341546036,1730972389658,-2000.0,0.0004,120]
[341546037,1730972389693,-1436.0,0.0004,120]
[341546038,1730972389731,-2000.0,0.0004,120]
[341546039,1730972389765,-800.0,0.0004,120]
[341546040,1730972389803,-450.70475511,0.0004,120]
[341546041,1730972389838,-2000.0,0.0004,30]
[341546042,1730972389873,-2000.0,0.0004,60]
[341546043,1730972389908,-2000.0,0.0004,120]
[341546044,1730972389945,-400.0,0.0004,120]
[341546045,1730972389979,-19140.7530633,0.0004,120]
[341546046,1730972390013,-14000.0,0.0004,32]
[341546047,1730972390048,-13860.0,0.0004,45]
[341546048,1730972390084,-837.33964485,0.0004,120]
[341546049,1730972390118,-15111.20752309,0.0004,30]
[341546050,1730972390153,-3036.0,0.0004,120]
[341546051,1730972390188,-12500.0,0.0004,120]
[341546052,1730972390222,-7500.0,0.0004,120]
[341546053,1730972390258,-4935.84,0.0004,120]
[341546054,1730972390294,-12500.0,0.0004,120]
[341546055,1730972390329,-12500.0,0.0004,120]
[341546056,1730972390364,-1871.58650478,0.0004,120]
[341546057,1730972390398,-386.0,0.0004,120]
[341546058,1730972390437,-1058.23,0.0004,120]
[341546059,1730972390471,-250.0,0.0004,30]
[341546060,1730972390511,-500.0,0.0004004,120]
[341546061,1730972390547,-605.257432,0.00040045,42]
[341546062,1730972390587,-225.39,0.00040068,120]
[341546063,1730972390822,-15499.85,0.000401,35]
[341546064,1730972390861,-324.92590703,0.0004011,30]
[341546065,1730972390896,-500.0,0.00040119,60]
[341546066,1730972390933,-208.0,0.0004016,30]
[341546067,1730972390969,-7500.0,0.0004025,120]
[341546068,1730972391005,-2000.0,0.00040274,30]
[341546069,1730972391042,-2000.0,0.00040274,60]
[341546070,1730972391083,-2000.0,0.00040274,120]
[341546071,1730972391117,-324.92590703,0.00040301,30]
[341546072,1730972391154,-12500.0,0.00040375,120]
[341546073,1730972391191,-12500.0,0.00040375,120]
[341546074,1730972391229,-5119.55,0.00040375,120]
[341546075,1730972391266,-1003.3,0.000404,44]
[341546076,1730972391304,-4526.45,0.0004041,120]
[341546077,1730972391340,-324.92590703,0.00040493,30]
[341546078,1730972391376,-9721.97,0.000405,120]
[341546079,1730972391411,-7500.0,0.000405,120]
[341546080,1730972391444,-2000.0,0.00040548,30]
[341546081,1730972391479,-2000.0,0.00040548,60]
[341546082,1730972391514,-2000.0,0.00040548,120]
[341546083,1730972391552,-500.0,0.00040667,60]
[341546084,1730972391592,-700.0,0.00040667,60]
[341546085,1730972391631,-500.0,0.00040667,60]
[341546086,1730972391671,-324.92590703,0.00040685,30]
[341546087,1730972391716,-323.49,0.000407,31]
[341546088,1730972391757,-323.49,0.000407,31]
[341546089,1730972391797,-323.49,0.000407,31]
[341546090,1730972391834,-323.49,0.000407,31]
[341546091,1730972391874,-323.49,0.000407,31]
[341546092,1730972391914,-323.49,0.000407,31]
[341546093,1730972391952,-323.49,0.000407,31]
[341546094,1730972391992,-323.49,0.000407,31]
[341546095,1730972392031,-323.49,0.000407,31]
[341546096,1730972392070,-323.49,0.000407,31]
[341546097,1730972392109,-323.49,0.000407,31]
[341546098,1730972392145,-323.49,0.000407,31]
[341546099,1730972392183,-323.49,0.000407,31]
[341546100,1730972392220,-323.49,0.000407,31]
[341546101,1730972392258,-323.49,0.000407,31]
[341546102,1730972392296,-323.49,0.000407,31]
[341546103,1730972392335,-323.49,0.000407,31]
[341546104,1730972392375,-323.49,0.000407,31]
[341546105,1730972392415,-323.49,0.000407,31]
[341546106,1730972392455,-323.49,0.000407,31]
[341546107,1730972392496,-323.49,0.000407,31]
[341546108,1730972392535,-323.49,0.000407,31]
[341546109,1730972392576,-323.49,0.000407,31]
[341546110,1730972392615,-323.49,0.000407,31]
[341546111,1730972392654,-306.68,0.00040702,120]
[341546112,1730972392694,-12500.0,0.0004075,120]
[341546113,1730972392733,-7500.0,0.0004075,120]
[341546114,1730972392773,-12500.0,0.0004075,120]
[341546115,1730972392812,-2929.29,0.0004077,30]
[341546116,1730972392849,-2929.29,0.0004077,30]
[341546117,1730972392883,-2929.29,0.0004077,30]
[341546118,1730972392918,-2929.29,0.0004077,30]
[341546119,1730972392955,-150.0,0.00040782,120]
[341546120,1730972392989,-865.49,0.00040794,120]
[341546121,1730972393024,-865.49,0.00040794,120]
[341546122,1730972393061,-865.49,0.00040794,120]
[341546123,1730972393096,-865.49,0.00040794,120]
[341546124,1730972393132,-865.49,0.00040794,120]
[341546125,1730972393167,-865.49,0.00040794,120]
[341546126,1730972393203,-865.49,0.00040794,120]
[341546127,1730972393236,-865.49,0.00040794,120]
[341546128,1730972393270,-865.49,0.00040794,120]
[341546129,1730972393304,-865.49,0.00040794,120]
[341546130,1730972393338,-865.49,0.00040794,120]
[341546131,1730972393371,-865.49,0.00040794,120]
[341546132,1730972393404,-865.49,0.00040794,120]
[341546133,1730972393440,-865.49,0.00040794,120]
[341546134,1730972393476,-865.49,0.00040794,120]
[341546135,1730972393510,-865.49,0.00040794,120]
[341546136,1730972393545,-865.49,0.00040794,120]
[341546137,1730972393580,-865.49,0.00040794,120]
[341546138,1730972393614,-865.49,0.00040794,120]
[341546139,1730972393649,-865.49,0.00040794,120]
[341546140,1730972393686,-865.49,0.00040794,120]
[341546141,1730972393721,-865.49,0.00040794,120]
[341546142,1730972393756,-865.49,0.00040794,120]
[341546143,1730972393794,-865.69188227,0.00040794,120]
[341546144,1730972393829,-150.110711,0.00040798,120]
[341546145,1730972393866,-2000.0,0.00040822,30]
[341546146,1730972393899,-2000.0,0.00040822,60]
[341546147,1730972393933,-2000.0,0.00040822,120]
[341546148,1730972393967,-324.92590703,0.00040877,30]
[341546149,1730972394003,-150.0,0.00040901,120]
[341546150,1730972394035,-188.12,0.00040919,120]
[341546151,1730972394070,-50000.0,0.00041,31]
[341546152,1730972394107,-900.0,0.00041,42]
[341546153,1730972394143,-2000.0,0.00041,120]
[341546154,1730972394176,-1000.0,0.00041,30]
[341546155,1730972394214,-25000.0,0.00041,120]
[341546156,1730972394247,-231272.19187313,0.00041,60]
[341546157,1730972394283,-1000.0,0.00041,60]
[341546158,1730972394316,-786.98,0.00041,120]
[341546159,1730972394350,-400.0,0.00041,120]
[341546160,1730972394383,-1000.0,0.00041,30]
[341546161,1730972394416,-452.999993,0.00041,120]
[341546162,1730972394452,-7500.0,0.00041,120]
[341546163,1730972394486,-2929.29,0.00041044,30]
[341546164,1730972394520,-2929.29,0.00041044,30]
[341546165,1730972394556,-324.92590703,0.00041068,30]
[341546166,1730972394590,-208.0,0.0004107,30]
[341546167,1730972394818,-9074.90865,0.00041088,30]
[341546168,1730972394856,-1164.89,0.00041095,30]
[341546169,1730972394893,-1164.89,0.00041095,30]
[341546170,1730972394932,-1164.89,0.00041095,30]
[341546171,1730972394968,-1164.89,0.00041095,30]
[341546172,1730972395003,-1164.89,0.00041095,30]
[341546173,1730972395040,-1164.89,0.00041095,30]
[341546174,1730972395075,-1164.89,0.00041095,30]
[341546175,1730972395111,-1164.89,0.00041095,30]
[341546176,1730972395147,-1164.89,0.00041095,30]
[341546177,1730972395182,-1164.89,0.00041095,30]
[341546178,1730972395218,-1164.89,0.00041095,30]
[341546179,1730972395256,-1164.89,0.00041095,30]
[341546180,1730972395292,-1164.89,0.00041095,30]
[341546181,1730972395328,-1164.89,0.00041095,30]
[341546182,1730972395365,-1164.89,0.00041095,30]
[341546183,1730972395399,-1164.89,0.00041095,30]
[341546184,1730972395436,-1164.89,0.00041095,30]
[341546185,1730972395470,-1164.89,0.00041095,30]
[341546186,1730972395505,-1164.89,0.00041095,30]
[341546187,1730972395540,-1164.89,0.00041095,30]
[341546188,1730972395582,-1164.89,0.00041095,30]
[341546189,1730972395619,-1164.89,0.00041095,30]
[341546190,1730972395655,-1164.89,0.00041095,30]
[341546191,1730972395691,-1165.10563979,0.00041095,30]
[341546192,1730972395728,-379.99,0.00041095,30]
[341546193,1730972395767,-1807.74,0.00041095,60]
[341546194,1730972395804,-1807.74,0.00041095,60]
[341546195,1730972395840,-1807.74,0.00041095,60]
[341546196,1730972395873,-1807.74,0.00041095,60]
[341546197,1730972395907,-1807.74,0.00041095,60]
[341546198,1730972395942,-1807.74,0.00041095,60]
[341546199,1730972395977,-1807.74,0.00041095,60]
[341546200,1730972396013,-1807.74,0.00041095,60]
[341546201,1730972396047,-1807.74,0.00041095,60]
[341546202,1730972396082,-1807.74,0.00041095,60]
[341546203,1730972396116,-1807.74,0.00041095,60]
[341546204,1730972396151,-1807.74,0.00041095,60]
[341546205,1730972396187,-1807.74,0.00041095,60]
[341546206,1730972396223,-1807.74,0.00041095,60]
[341546207,1730972396256,-1807.74,0.00041095,60]
[341546208,1730972396292,-1807.74,0.00041095,60]
[341546209,1730972396327,-1807.74,0.00041095,60]
[341546210,1730972396362,-1807.74,0.00041095,60]
[341546211,1730972396397,-1807.74,0.00041095,60]
[341546212,1730972396433,-1807.74,0.00041095,60]
[341546213,1730972396468,-1807.74,0.00041095,60]
[341546214,1730972396502,-1807.74,0.00041095,60]
[341546215,1730972396536,-1807.74,0.00041095,60]
[341546216,1730972396572,-1807.94091107,0.00041095,60]
[341546217,1730972396607,-500.0,0.00041095,90]
[341546218,1730972396641,-500.0,0.00041095,93]
[341546219,1730972396674,-500.0,0.00041095,96]
[341546220,1730972396713,-500.0,0.00041095,99]
[341546221,1730972396748,-500.0,0.00041095,102]
[341546222,1730972396785,-500.0,0.00041095,105]
[341546223,1730972396819,-500.0,0.00041095,108]
[341546224,1730972396852,-500.0,0.00041095,111]
[341546225,1730972396886,-500.0,0.00041095,114]
[341546226,1730972396918,-500.0,0.00041095,117]
[341546227,1730972396952,-500.0,0.00041095,120]
[341546228,1730972396985,-500.0,0.00041095,120]
[341546229,1730972397018,-500.0,0.00041095,120]
[341546230,1730972397051,-500.0,0.00041095,120]
[341546231,1730972397084,-500.0,0.00041095,120]
[341546232,1730972397116,-500.0,0.00041095,120]
[341546233,1730972397150,-500.0,0.00041095,120]
[341546234,1730972397184,-500.0,0.00041095,120]
[341546235,1730972397216,-500.0,0.00041095,120]
[341546236,1730972397248,-262.85633465,0.00041095,120]
[341546237,1730972397281,-500.0,0.00041095,30]
[341546238,1730972397313,-520.45462097,0.00041095,30]
[341546239,1730972397346,-4526.45,0.00041095,120]
[341546240,1730972397378,-389.83,0.00041095,120]
[341546241,1730972397411,-389.83,0.00041095,120]
[341546242,1730972397442,-389.83,0.00041095,120]
[341546243,1730972397474,-389.83,0.00041095,120]
[341546244,1730972397507,-389.83,0.00041095,120]
[341546245,1730972397540,-389.83,0.00041095,120]
[341546246,1730972397577,-389.83,0.00041095,120]
[341546247,1730972397610,-389.83,0.00041095,120]
[341546248,1730972397643,-389.83,0.00041095,120]
[341546249,1730972397676,-389.83,0.00041095,120]
[341546250,1730972397709,-389.83,0.00041095,120]
[341546251,1730972397742,-389.83,0.00041095,120]
[341546252,1730972397774,-389.83,0.00041095,120]
[341546253,1730972397807,-389.83,0.00041095,120]
[341546254,1730972397840,-389.83,0.00041095,120]
[341546255,1730972397875,-389.83,0.00041095,120]
[341546256,1730972397908,-389.83,0.00041095,120]
[341546257,1730972397947,-389.83,0.00041095,120]
[341546258,1730972397980,-389.83,0.00041095,120]
[341546259,1730972398014,-389.83,0.00041095,120]
[341546260,1730972398048,-389.83,0.00041095,120]
[341546261,1730972398081,-389.83,0.00041095,120]
[341546262,1730972398114,-389.83,0.00041095,120]
[341546263,1730972398148,-389.88179979,0.00041095,120]
[341546264,1730972398188,-599.0,0.00041095,120]
[341546265,1730972398222,-599.0,0.00041095,120]
[341546266,1730972398256,-599.0,0.00041095,120]
[341546267,1730972398295,-599.0,0.00041095,120]
[341546268,1730972398329,-599.0,0.00041095,120]
[341546269,1730972398362,-599.0,0.00041095,120]
[341546270,1730972398394,-599.0,0.00041095,120]
[341546271,1730972398629,-599.0,0.00041095,120]
[341546272,1730972398664,-599.0,0.00041095,120]
[341546273,1730972398697,-599.0,0.00041095,120]
[341546274,1730972398731,-599.0,0.00041095,120]
[341546275,1730972398765,-599.0,0.00041095,120]
[341546276,1730972398802,-599.0,0.00041095,120]
[341546277,1730972398834,-599.0,0.00041095,120]
[341546278,1730972398870,-599.0,0.00041095,120]
[341546279,1730972398904,-599.0,0.00041095,120]
[341546280,1730972398940,-599.0,0.00041095,120]
[341546281,1730972398975,-599.0,0.00041095,120]
[341546282,1730972399009,-599.0,0.00041095,120]
[341546283,1730972399042,-599.0,0.00041095,120]
[341546284,1730972399076,-599.0,0.00041095,120]
[341546285,1730972399111,-584.3948759,0.00041095,120]
[341546286,1730972399147,-1000.0,0.00041095,120]
[341546287,1730972399183,-1000.0,0.00041095,120]
[341546288,1730972399226,-1000.0,0.00041095,120]
[341546289,1730972399261,-1000.0,0.00041095,120]
[341546290,1730972399297,-1000.0,0.00041095,120]
[341546291,1730972399332,-1000.0,0.00041095,120]
[341546292,1730972399369,-1000.0,0.00041095,120]
[341546293,1730972399405,-1000.0,0.00041095,120]
[341546294,1730972399441,-1000.0,0.00041095,120]
[341546295,1730972399476,-1000.0,0.00041095,120]
[341546296,1730972399513,-1000.0,0.00041095,120]
[341546297,1730972399550,-1000.0,0.00041095,120]
[341546298,1730972399587,-1000.0,0.00041095,120]
[341546299,1730972399623,-1000.0,0.00041095,120]
[341546300,1730972399659,-1000.0,0.00041095,120]
[341546301,1730972399696,-1000.0,0.00041095,120]
[341546302,1730972399733,-1000.0,0.00041095,120]
[341546303,1730972399768,-1000.0,0.00041095,120]
[341546304,1730972399803,-963.41523258,0.00041095,120]
[341546305,1730972399841,-2000.0,0.00041096,30]
[341546306,1730972399876,-2000.0,0.00041096,60]
[341546307,1730972399915,-2000.0,0.00041096,120]
[341546308,1730972399950,-262.0,0.000411,30]
[341546309,1730972399986,-1237.0,0.000411,30]
[341546310,1730972400022,-182.22688363,0.00041114,30]
[341546311,1730972400059,-12500.0,0.00041125,120]
[341546312,1730972400095,-11722.33,0.00041125,120]
[341546313,1730972400132,-182.22688363,0.00041158,30]
[341546314,1730972400169,-150.0,0.00041186,30]
[341546315,1730972400211,-150.110711,0.00041198,120]
[341546316,1730972400250,-182.22688363,0.00041201,30]
[341546317,1730972400289,-150.0,0.00041215,30]
[341546318,1730972400329,-182.22688363,0.00041245,30]
[341546319,1730972400367,-2081.74,0.0004125,120]
[341546320,1730972400404,-324.92590703,0.0004126,30]
[341546321,1730972400442,-150.0,0.00041278,30]
[341546322,1730972400480,-9074.90865,0.00041288,30]
[341546323,1730972400517,-182.22688363,0.00041289,30]
[341546324,1730972400555,-500.0,0.00041305,120]
[341546325,1730972400593,-1000.0,0.00041311,30]
[341546326,1730972400630,-2929.29,0.00041317,30]
[341546327,1730972400667,-2929.29,0.00041317,30]
[341546328,1730972400706,-182.22688363,0.00041332,30]
[341546329,1730972400745,-150.0,0.00041357,30]
[341546330,1730972400784,-500.0,0.00041369,30]
[341546331,1730972400823,-2000.0,0.0004137,60]
[341546332,1730972400859,-2000.0,0.0004137,120]
[341546333,1730972400897,-150.0,0.0004137,30]
[341546334,1730972400934,-111857.69719842,0.00041371,120]
[341546335,1730972421504,-2829.04,0.00035616,120]
[341546336,1730972421573,-2829.04,0.00036301,120]
[341546337,1730972421625,-2829.04,0.00036986,120]
[341546338,1730972421669,-2829.04,0.00037671,120]
[341546339,1730972421712,-2829.04,0.00038356,120]
[341546340,1730972421756,-2829.04,0.00039041,120]
[341546341,1730972421800,-2829.04,0.00039726,120]
[341546342,1730972421844,-2829.04,0.0004041,120]
[341546343,1730972421891,-2829.04,0.00041095,120]
[341546344,1730972421935,-131507.51004355,0.00041371,120]
[341546345,1730972421973,-500.0,0.00041371,120]
[341546346,1730972422012,-182.22688363,0.00041376,30]
[341546347,1730972422049,-1999.0,0.00041397,120]
[341546348,1730972422087,-1999.0,0.00041397,120]
[341546349,1730972422123,-1999.0,0.00041397,120]
[341546350,1730972422162,-1999.0,0.00041397,120]
[341546351,1730972422199,-1999.0,0.00041397,120]
[341546352,1730972422235,-1999.0,0.00041397,120]
[341546353,1730972422272,-1999.0,0.00041397,120]
[341546354,1730972422309,-1999.0,0.00041397,120]
[341546355,1730972422346,-1999.0,0.00041397,120]
[341546356,1730972422384,-1999.0,0.00041397,120]
[341546357,1730972422420,-1999.0,0.00041397,120]
[341546358,1730972422457,-1999.0,0.00041397,120]
[341546359,1730972422494,-1999.0,0.00041397,120]
[341546360,1730972422531,-1999.0,0.00041397,120]
[341546361,1730972422569,-1999.0,0.00041397,120]
[341546362,1730972422606,-1999.0,0.00041397,120]
[341546363,1730972422644,-670.21035985,0.00041397,120]
[341546364,1730972422681,-182.22688363,0.0004142,30]
[341546365,1730972422719,-342.69170101,0.00041425,120]
[341546366,1730972422758,-324.92590703,0.00041452,30]
[341546367,1730972422795,-150.0,0.00041462,30]
[341546368,1730972422834,-182.22688363,0.00041463,30]
[341546369,1730972422870,-5001.60108,0.00041481,30]
[341546370,1730972422906,-9074.90865,0.00041488,30]
[341546371,1730972422945,-150.110711,0.00041498,120]
[341546372,1730972422986,-30000.0,0.000415,120]
[341546373,1730972423025,-58332.47294522,0.000415,30]
[341546374,1730972423064,-2076.0,0.000415,120]
[341546375,1730972423104,-182.22688363,0.00041507,30]
[341546376,1730972423144,-150.0,0.00041547,30]
[341546377,1730972423183,-1003.3,0.0004155,54]
[341546378,1730972423222,-182.22688363,0.0004155,30]
[341546379,1730972423261,-150.0,0.00041554,30]
[341546380,1730972423302,-2929.29,0.0004159,30]
[341546381,1730972423341,-2929.29,0.0004159,30]
[341546382,1730972423384,-182.22688363,0.00041594,30]
[341546383,1730972423423,-182.22688363,0.00041638,30]
[341546384,1730972423462,-500.0,0.00041643,30]
[341546385,1730972423499,-324.92590703,0.00041644,30]
[341546386,1730972423538,-2000.0,0.00041644,60]
[341546387,1730972423579,-2000.0,0.00041644,120]
[341546388,1730972423619,-150.0,0.00041646,30]
[341546389,1730972423659,-150.0,0.0004166,120]
[341546390,1730972423700,-10929.05714808,0.00041668,120]
[341546391,1730972423742,-182.22688363,0.00041681,30]
[341546392,1730972423781,-9074.90865,0.00041688,30]
[341546393,1730972423821,-182.22688363,0.00041725,30]
[341546394,1730972423860,-150.0,0.00041738,30]
[341546395,1730972423900,-500.0,0.00041763,60]
[341546396,1730972423941,-700.0,0.00041763,60]
[341546397,1730972423979,-500.0,0.00041763,60]
[341546398,1730972424017,-500.0,0.00041766,30]
[341546399,1730972424054,-182.22688363,0.00041769,30]
[341546400,1730972424093,-150.0,0.00041769,30]
[341546401,1730972424133,-150.0,0.00041769,30]
[341546402,1730972424172,-5175.80830262,0.00041778,120]
[341546403,1730972424213,-2829.04,0.0004178,120]
[341546404,1730972424249,-500.0,0.00041791,30]
[341546405,1730972424287,-150.110711,0.00041798,120]
[341546406,1730972424324,-1000.0,0.000418,60]
[341546407,1730972424360,-182.22688363,0.00041812,30]
[341546408,1730972424398,-150.0,0.0004183,30]
[341546409,1730972424446,-182.22688363,0.00041856,30]
[341546410,1730972424487,-2929.29,0.00041863,30]
[341546411,1730972424526,-2929.29,0.00041863,30]
[341546412,1730972424565,-150.0,0.00041879,30]
[341546413,1730972424604,-500.0,0.00041885,30]
[341546414,1730972424644,-182.22688363,0.000419,30]
[341546415,1730972424682,-1650800.94839642,0.000419,120]
[341546416,1730972432920,-12500.0,0.0004,120]
[341546417,1730972432963,-12500.0,0.00040375,120]
[341546418,1730972433005,-12500.0,0.0004075,120]
[341546419,1730972433054,-12500.0,0.00041125,120]
[341546420,1730972433362,-12500.0,0.000415,120]
[341546421,1730972433405,-12500.0,0.00041875,120]
[341546422,1730972433445,-492887.30149344,0.000419,120]
[341546423,1730972433485,-201.3,0.000419,30]
[341546424,1730972433528,-201.3,0.000419,30]
[341546425,1730972433573,-500.0,0.00041913,30]
[341546426,1730972433617,-500.0,0.00041917,30]
[341546427,1730972433660,-2000.0,0.00041918,60]
[341546428,1730972433703,-2000.0,0.00041918,120]
[341546429,1730972433749,-150.0,0.00041922,30]
[341546430,1730972433794,-500.0,0.00041936,30]